fUSD/lending_fUSD_20250208
["ID","MTS","AMOUNT","RATE_DAILY","PERIOD"]
[352275264,1739024909755,-1500.0,8.813e-05,2]
[352275265,1739024909778,-4157.8567,8.836e-05,2]
[352275266,1739024909800,-1161.6079,8.836e-05,2]
[352275267,1739024909823,-802.69674187,8.836e-05,2]
[352275268,1739024911407,-10000.0,8.836e-05,2]
[352275272,1739024914956,-5956.61545813,8.836e-05,2]
[352275273,1739024914978,-397.5599,8.836e-05,2]
[352275275,1739024953679,3645.82464187,8.836e-05,2]
[352275276,1739024986122,-10000.0,8.836e-05,2]
[352275277,1739024986809,-10000.0,8.836e-05,2]
[352275278,1739024987596,-10000.0,8.836e-05,2]
[352275280,1739025023208,-1682.43135813,8.836e-05,2]
[352275281,1739025023230,-8317.56864187,8.836e-05,2]
[352275282,1739025023931,-10000.0,8.836e-05,2]
[352275300,1739025031768,-785.4956449,8.836e-05,2]
[352275301,1739025031780,-540.0,8.836e-05,2]
[352275302,1739025031790,-535.47,8.836e-05,2]
[352275303,1739025031801,-2629.85521323,8.836e-05,2]
[352275304,1739025031810,-4826.32,8.852e-05,2]
[352275305,1739025031819,-3218.72,8.861e-05,2]
[352275306,1739025031829,-736.47,8.869e-05,2]
[352275307,1739025031838,-200.0,8.919e-05,2]
[352275308,1739025031848,-875.7298,8.973e-05,2]
[352275309,1739025031857,-500.0,9.041e-05,2]
[352275310,1739025031866,-832.11,9.064e-05,2]
[352275311,1739025031875,-889.98,9.064e-05,2]
[352275312,1739025031885,-925.57,9.064e-05,2]
[352275313,1739025031894,-250.0,9.115e-05,2]
[352275314,1739025031903,-14723.53483958,9.122e-05,2]
[352275315,1739025031915,-2638.46326008,9.122e-05,2]
[352275316,1739025031925,-3071.48316617,9.122e-05,2]
[352275317,1739025031937,-1097.72946846,9.122e-05,2]
[352275318,1739025031948,-5244.38900129,9.122e-05,2]
[352275319,1739025031959,-550.0,9.122e-05,2]
[352275320,1739025031998,-536.08026442,9.122e-05,2]
[352275321,1739025032008,-166.66,9.171e-05,2]
[352275322,1739025032016,-1182.93998428,9.247e-05,2]
[352275323,1739025032028,-1395.09553501,9.247e-05,2]
[352275324,1739025032039,-1211.85000351,9.247e-05,2]
[352275325,1739025032050,-1004.6544772,9.247e-05,2]
[352275326,1739025032059,-150.0,9.336e-05,2]
[352275327,1739025032068,-1000.0,9.397e-05,2]
[352275328,1739025032077,-409.7933024,9.482e-05,2]
[352275329,1739025032086,-500.0,9.562e-05,2]
[352275330,1739025032095,-531.91,9.6e-05,2]
[352275331,1739025032104,-166.5,9.6e-05,2]
[352275333,1739025032113,-98.30283858,9.677e-05,2]
[352275335,1739025032124,-1807.43716142,9.677e-05,2]
[352275337,1739025032133,-449.60252774,9.719e-05,2]
[352275341,1739025032155,-50.39747226,9.719e-05,2]
[352275343,1739025032164,-167.66,9.888e-05,2]
[352275345,1739025032176,-77.43441987,9.973e-05,2]
[352275347,1739025032187,-422.56558013,9.973e-05,2]
[352275349,1739025032196,-500.0,9.999e-05,2]
[352275351,1739025032204,-704.1,9.999e-05,2]
[352275353,1739025032214,-500.0,9.999e-05,2]
[352275355,1739025032223,-500.0,9.999e-05,2]
[352275357,1739025032232,-500.0,9.999e-05,2]
[352275359,1739025032241,-500.0,9.999e-05,2]
[352275361,1739025032250,-500.0,9.999e-05,2]
[352275363,1739025032260,-820.46,9.999e-05,2]
[352275365,1739025032269,-279.36869489,9.999e-05,2]
[352275367,1739025032280,-220.63130511,9.999e-05,2]
[352275369,1739025032289,-500.0,9.999e-05,2]
[352275371,1739025032299,-332.42736325,0.0001,2]
[352275373,1739025032307,-1676.31443336,0.0001,2]
[352275375,1739025032316,-38294.14971888,0.0001,2]
[352275542,1739025037685,-5008.0489,8.836e-05,2]
[352275543,1739025037695,-500.0,9.999e-05,2]
[352275544,1739025037704,-505.31896273,9.999e-05,2]
[352275545,1739025037715,-5669207.36807847,0.0001,2]
[352275546,1739025037724,-214.57158034,0.0001,2]
[352275547,1739025037734,-2620.94798739,0.0001,2]
[352275548,1739025037743,-350.31693392,0.0001,2]
[352275549,1739025037753,-207.48922038,0.0001,2]
[352275550,1739025037762,-2231.84196685,0.0001,2]
[352275551,1739025037771,-500.0,0.00010136,2]
[352275552,1739025037781,-704.1,0.00010136,2]
[352275553,1739025037790,-500.0,0.00010136,2]
[352275554,1739025037800,-500.0,0.00010136,2]
[352275555,1739025037810,-820.46,0.00010136,2]
[352275556,1739025037819,-158.01,0.00010137,2]
[352275557,1739025037829,-889.98,0.00010197,2]
[352275558,1739025037840,-500.0,0.00010199,2]
[352275559,1739025037850,-718.73,0.00010199,2]
[352275560,1739025037860,-1388.54,0.00010199,2]
[352275561,1739025037869,-628.7,0.00010199,2]
[352275562,1739025037878,-615.39,0.00010199,2]
[352275563,1739025037888,-500.0,0.00010199,2]
[352275564,1739025037897,-969.22,0.00010199,2]
[352275565,1739025037906,-1269.47,0.00010199,2]
[352275566,1739025037915,-500.0,0.00010199,2]
[352275567,1739025037925,-721.06,0.00010199,2]
[352275569,1739025037934,-824.0,0.00010199,2]
[352275571,1739025037943,-556.74,0.00010199,2]
[352275573,1739025037953,-1549.33,0.00010199,2]
[352275575,1739025037961,-1314.21,0.00010199,2]
[352275577,1739025037970,-1494.18,0.00010199,2]
[352275579,1739025037979,-715.99,0.00010199,2]
[352275581,1739025037988,-581.85,0.00010199,2]
[352275583,1739025037998,-857.18,0.00010199,2]
[352275585,1739025038007,-1746.72,0.00010199,2]
[352275587,1739025038016,-500.0,0.00010199,2]
[352275589,1739025038025,-500.0,0.00010199,2]
[352275591,1739025038035,-664.49,0.00010199,2]
[352275593,1739025038050,-1187.38,0.00010199,2]
[352275595,1739025038059,-500.0,0.00010199,2]
[352275597,1739025038068,-500.0,0.00010199,2]
[352275599,1739025038077,-107815.15994294,0.000102,2]
[352275601,1739025038087,-500.0,0.00010249,2]
[352275603,1739025038096,-500.0,0.00010249,2]
[352275605,1739025038106,-500.0,0.00010249,2]
[352275607,1739025038115,-500.0,0.00010249,2]
[352275609,1739025038124,-500.0,0.00010249,2]
[352275611,1739025038134,-500.0,0.00010249,2]
[352275614,1739025038144,-500.0,0.00010249,2]
[352275618,1739025038153,-500.0,0.00010249,2]
[352275622,1739025038162,-632.84,0.00010249,2]
[352275626,1739025038171,-500.0,0.00010249,2]
[352275628,1739025038181,-500.0,0.00010249,2]
[352275630,1739025038190,-500.0,0.00010249,2]
[352275632,1739025038200,-674.84,0.00010249,2]
[352275634,1739025038209,-500.0,0.00010249,2]
[352275636,1739025038220,-540.28,0.00010249,2]
[352275638,1739025038229,-692.43,0.00010249,2]
[352275640,1739025038239,-500.0,0.00010249,2]
[352275642,1739025038249,-749.92,0.00010249,2]
[352275644,1739025038258,-502.37,0.00010249,2]
[352275646,1739025038267,-500.0,0.00010249,2]
[352275648,1739025038276,-500.0,0.00010249,2]
[352275650,1739025038286,-500.0,0.00010249,2]
[352275653,1739025038295,-500.0,0.00010249,2]
[352275655,1739025038305,-500.0,0.00010249,2]
[352275657,1739025038321,-500.0,0.00010249,2]
[352275659,1739025038332,-605.64,0.00010249,2]
[352275661,1739025038342,-500.0,0.00010249,2]
[352275663,1739025038351,-500.0,0.00010249,2]
[352275664,1739025038360,-500.0,0.00010249,2]
[352275667,1739025038370,-500.0,0.00010249,2]
[352275669,1739025038379,-500.0,0.00010249,2]
[352275671,1739025038388,-500.0,0.00010249,2]
[352275672,1739025038402,-500.0,0.00010249,2]
[352275674,1739025038411,-500.0,0.00010249,2]
[352275676,1739025038420,-500.0,0.00010249,2]
[352275678,1739025038430,-500.0,0.00010249,2]
[352275680,1739025038440,-500.0,0.00010249,2]
[352275682,1739025038449,-664.42,0.00010249,2]
[352275684,1739025038459,-500.0,0.00010249,2]
[352275686,1739025038468,-500.0,0.00010249,2]
[352275688,1739025038479,-500.0,0.00010249,2]
[352275690,1739025038490,-513.260974,0.00010249,2]
[352275693,1739025038499,-500.0,0.00010249,2]
[352275695,1739025038509,-511.67,0.00010249,2]
[352275697,1739025038519,-500.0,0.00010249,2]
[352275698,1739025038528,-500.0,0.00010249,2]
[352275701,1739025038537,-500.0,0.00010249,2]
[352275703,1739025038547,-500.0,0.00010249,2]
[352275704,1739025038556,-655.7,0.00010249,2]
[352275706,1739025038565,-528.51,0.00010249,2]
[352275708,1739025038575,-500.0,0.00010249,2]
[352275710,1739025038584,-585.89,0.00010249,2]
[352275713,1739025038593,-653.88,0.00010249,2]
[352275715,1739025038603,-689.31,0.00010249,2]
[352275716,1739025038612,-500.0,0.00010249,2]
[352275718,1739025038622,-500.0,0.00010249,2]
[352275721,1739025038631,-500.0,0.00010249,2]
[352275723,1739025038641,-500.0,0.00010249,2]
[352275725,1739025038651,-500.0,0.00010249,2]
[352275727,1739025038660,-941.99,0.00010249,2]
[352275729,1739025038671,-500.0,0.00010249,2]
[352275730,1739025038680,-500.0,0.00010249,2]
[352275733,1739025038690,-500.0,0.00010249,2]
[352275734,1739025038699,-654.77,0.00010249,2]
[352275737,1739025038709,-500.0,0.00010249,2]
[352275739,1739025038719,-500.0,0.00010249,2]
[352275740,1739025038728,-624.88,0.00010249,2]
[352275742,1739025038738,-500.0,0.00010249,2]
[352275744,1739025038748,-621.59,0.00010249,2]
[352275746,1739025038757,-756.53,0.00010249,2]
[352275748,1739025038766,-687.39,0.00010249,2]
[352275750,1739025038776,-500.0,0.00010249,2]
[352275752,1739025038785,-500.0,0.00010249,2]
[352275754,1739025038795,-500.0,0.00010249,2]
[352275757,1739025038804,-725.88,0.00010249,2]
[352275759,1739025038814,-500.0,0.00010249,2]
[352275761,1739025038824,-704.43,0.00010249,2]
[352275763,1739025038833,-500.0,0.00010249,2]
[352275764,1739025038843,-762.52,0.00010249,2]
[352275766,1739025038852,-500.0,0.0001025,2]
[352275768,1739025038862,-500.0,0.0001025,2]
[352275770,1739025038871,-500.0,0.0001025,2]
[352275773,1739025038881,-500.0,0.0001025,2]
[352275775,1739025038890,-500.0,0.0001025,2]
[352275777,1739025038900,-547.89,0.0001025,2]
[352275778,1739025038909,-500.0,0.0001025,2]
[352275780,1739025038919,-500.0,0.0001025,2]
[352275782,1739025038929,-500.0,0.0001025,2]
[352275785,1739025038939,-500.0,0.0001025,2]
[352275786,1739025038948,-500.0,0.0001025,2]
[352275788,1739025038957,-255.0,0.0001027,2]
[352275790,1739025038967,-500.0,0.00010273,2]
[352275792,1739025038976,-704.1,0.00010273,2]
[352275794,1739025038985,-344.6717621,0.00010273,2]
[352275796,1739025038993,-820.46,0.00010273,2]
[352275798,1739025039002,-500.0,0.00010336,2]
[352275800,1739025039011,-718.73,0.00010336,2]
[352275802,1739025039020,-1388.54,0.00010336,2]
[352275804,1739025039029,-628.7,0.00010336,2]
[352275806,1739025039039,-615.39,0.00010336,2]
[352275808,1739025039048,-500.0,0.00010336,2]
[352275810,1739025039058,-969.22,0.00010336,2]
[352275812,1739025039067,-1269.47,0.00010336,2]
[352275814,1739025039076,-500.0,0.00010336,2]
[352275816,1739025039085,-721.06,0.00010336,2]
[352275818,1739025039095,-824.0,0.00010336,2]
[352275820,1739025039104,-556.74,0.00010336,2]
[352275822,1739025039113,-1549.33,0.00010336,2]
[352275824,1739025039122,-1314.21,0.00010336,2]
[352275826,1739025039131,-1494.18,0.00010336,2]
[352275828,1739025039140,-715.99,0.00010336,2]
[352275830,1739025039149,-581.85,0.00010336,2]
[352275831,1739025039159,-857.18,0.00010336,2]
[352275833,1739025039168,-1746.72,0.00010336,2]
[352275835,1739025039179,-500.0,0.00010336,2]
[352275837,1739025039188,-1187.38,0.00010336,2]
[352275839,1739025039197,-664.49,0.00010336,2]
[352275841,1739025039206,-500.0,0.00010336,2]
[352275843,1739025039216,-500.0,0.00010336,2]
[352275845,1739025039225,-963.3,0.00010382,2]
[352275847,1739025039235,-500.0,0.00010384,2]
[352275849,1739025039244,-500.0,0.00010384,2]
[352275851,1739025039254,-500.0,0.00010384,2]
[352275853,1739025039263,-161.99,0.00010384,2]
[352275855,1739025039272,-569.14,0.00010384,2]
[352275857,1739025039281,-500.67492405,0.00010384,2]
[352275859,1739025039291,-500.0,0.00010384,2]
[352275861,1739025039300,-500.0,0.00010384,2]
[352275863,1739025039309,-500.0,0.00010384,2]
[352275865,1739025039319,-809.17,0.00010384,2]
[352275867,1739025039328,-500.0,0.00010384,2]
[352275869,1739025039339,-589.64,0.00010384,2]
[352275871,1739025039348,-500.0,0.00010384,2]
[352275873,1739025039357,-500.0,0.00010384,2]
[352275875,1739025039367,-500.0,0.00010384,2]
[352275877,1739025039376,-500.0,0.00010384,2]
[352275879,1739025039386,-659.99,0.00010384,2]
[352275881,1739025039395,-500.0,0.00010384,2]
[352275883,1739025039408,-500.0,0.00010384,2]
[352275885,1739025039417,-500.0,0.00010384,2]
[352275887,1739025039427,-500.0,0.00010384,2]
[352275889,1739025039436,-500.0,0.00010384,2]
[352275891,1739025039447,-500.0,0.00010384,2]
[352275893,1739025039456,-546.45,0.00010384,2]
[352275895,1739025039471,-500.0,0.00010384,2]
[352275897,1739025039492,-500.0,0.00010384,2]
[352275899,1739025039503,-500.0,0.00010384,2]
[352275901,1739025039512,-1345.984938,0.00010384,2]
[352275903,1739025039522,-664.65,0.00010384,2]
[352275905,1739025039531,-500.0,0.00010384,2]
[352275907,1739025039540,-156.499295,0.00010384,2]
[352275909,1739025039548,-500.0,0.00010384,2]
[352275912,1739025039558,-155.563679,0.00010384,2]
[352275915,1739025039567,-500.0,0.00010384,2]
[352275917,1739025039577,-728.2,0.00010384,2]
[352275919,1739025039586,-500.0,0.00010384,2]
[352275921,1739025039595,-500.0,0.00010384,2]
[352275923,1739025039604,-545.64,0.00010384,2]
[352275925,1739025039614,-1109.452651,0.00010384,2]
[352275927,1739025039623,-500.0,0.00010384,2]
[352275929,1739025039633,-500.0,0.00010384,2]
[352275931,1739025039642,-776.48,0.00010384,2]
[352275933,1739025039652,-169.535062,0.00010384,2]
[352275935,1739025039661,-500.0,0.00010384,2]
[352275937,1739025039671,-193.24654,0.00010384,2]
[352275939,1739025039681,-500.0,0.00010384,2]
[352275941,1739025039690,-839.57,0.00010384,2]
[352275943,1739025039699,-539.31,0.00010384,2]
[352275944,1739025039708,-557.4,0.00010384,2]
[352275947,1739025039718,-500.0,0.00010384,2]
[352275949,1739025039727,-207.87892,0.00010384,2]
[352275951,1739025039736,-500.0,0.00010384,2]
[352275953,1739025039746,-579.03,0.00010384,2]
[352275955,1739025039755,-553.21,0.00010384,2]
[352275956,1739025039764,-500.0,0.00010384,2]
[352275959,1739025039773,-578.44,0.00010384,2]
[352275960,1739025039782,-500.0,0.00010384,2]
[352275962,1739025039791,-552.84,0.00010384,2]
[352275964,1739025039801,-549.62,0.00010384,2]
[352275966,1739025039810,-500.0,0.00010384,2]
[352275968,1739025039820,-500.0,0.00010384,2]
[352275970,1739025039829,-1582.96,0.00010384,2]
[352275972,1739025039838,-1658.92,0.00010384,2]
[352275973,1739025039847,-500.0,0.00010384,2]
[352275974,1739025039856,-610.08,0.00010384,2]
[352275975,1739025039865,-500.0,0.00010384,2]
[352275976,1739025039874,-757.03,0.00010384,2]
[352275977,1739025039883,-590.06,0.00010384,2]
[352275978,1739025039892,-540.61,0.00010384,2]
[352275979,1739025039901,-532.91,0.00010384,2]
[352275980,1739025039909,-1035.53,0.00010384,2]
[352275981,1739025039919,-500.0,0.00010384,2]
[352275982,1739025039929,-500.0,0.00010384,2]
[352275983,1739025039938,-500.0,0.00010384,2]
[352275984,1739025039948,-635.53,0.00010384,2]
[352275985,1739025039957,-948.44,0.00010384,2]
[352275986,1739025039966,-787.27,0.00010384,2]
[352275987,1739025039975,-726.37,0.00010384,2]
[352275988,1739025039983,-500.0,0.00010384,2]
[352275989,1739025039992,-793.68,0.00010384,2]
[352275990,1739025040001,-907.45,0.00010384,2]
[352275991,1739025040010,-500.0,0.00010384,2]
[352275992,1739025040019,-516.99,0.00010384,2]
[352275993,1739025040028,-818.09,0.00010384,2]
[352275995,1739025040037,-596.2,0.00010384,2]
[352275996,1739025040046,-808.28,0.00010384,2]
[352275998,1739025040056,-2003.11,0.00010384,2]
[352276000,1739025040065,-1081.25,0.00010384,2]
[352276002,1739025040076,-1028.26,0.00010384,2]
[352276004,1739025040085,-678.45,0.00010384,2]
[352276006,1739025040095,-724.3,0.00010384,2]
[352276008,1739025040104,-795.03,0.00010384,2]
[352276010,1739025040113,-976.43,0.00010384,2]
[352276012,1739025040123,-515.19,0.00010384,2]
[352276014,1739025040132,-590.12,0.00010384,2]
[352276016,1739025040141,-1423.24,0.00010384,2]
[352276018,1739025040150,-1327.03,0.00010384,2]
[352276020,1739025040160,-3374.39,0.00010384,2]
[352276022,1739025040169,-500.0,0.00010384,2]
[352276024,1739025040178,-500.0,0.00010384,2]
[352276026,1739025040188,-1092.01,0.00010384,2]
[352276028,1739025040197,-1416.11,0.00010384,2]
[352276030,1739025040206,-500.0,0.00010384,2]
[352276032,1739025040216,-1652.06,0.00010384,2]
[352276056,1739025040436,-500.0,0.00010384,2]
[352276058,1739025040447,-934.99,0.00010384,2]
[352276060,1739025040456,-2394.35,0.00010384,2]
[352276062,1739025040465,-579.55,0.00010384,2]
[352276064,1739025040475,-1109.71,0.00010384,2]
[352276066,1739025040485,-500.0,0.00010384,2]
[352276068,1739025040494,-500.0,0.00010384,2]
[352276070,1739025040503,-500.0,0.00010384,2]
[352276072,1739025040513,-1006.47,0.00010384,2]
[352276074,1739025040522,-537.67,0.00010384,2]
[352276076,1739025040531,-500.0,0.00010384,2]
[352276078,1739025040540,-1531.99,0.00010384,2]
[352276080,1739025040549,-500.0,0.00010384,2]
[352276082,1739025040559,-500.0,0.00010384,2]
[352276084,1739025040568,-761.86,0.00010384,2]
[352276086,1739025040580,-501.29333952,0.00010384,2]
[352276088,1739025040590,-500.0,0.00010384,2]
[352276090,1739025040599,-772.88,0.00010384,2]
[352276092,1739025040609,-2141.05,0.00010384,2]
[352276094,1739025040618,-500.0,0.00010384,2]
[352276096,1739025040627,-500.0,0.00010384,2]
[352276098,1739025040637,-500.0,0.00010384,2]
[352276100,1739025040647,-850.74,0.00010384,2]
[352276102,1739025040656,-500.0,0.00010384,2]
[352276104,1739025040665,-527.11,0.00010384,2]
[352276106,1739025040675,-629.37,0.00010384,2]
[352276108,1739025040684,-871.05,0.00010384,2]
[352276110,1739025040693,-817.37,0.00010384,2]
[352276112,1739025040702,-1275.15,0.00010384,2]
[352276114,1739025040711,-500.0,0.00010384,2]
[352276116,1739025040720,-154.363055,0.00010384,2]
[352276117,1739025040730,-500.0,0.00010384,2]
[352276120,1739025040739,-500.0,0.00010384,2]
[352276121,1739025040748,-513.53785999,0.00010384,2]
[352276123,1739025040757,-557.63,0.00010384,2]
[352276125,1739025040766,-500.0,0.00010384,2]
[352276127,1739025040775,-810.91,0.00010384,2]
[352276129,1739025040785,-500.0,0.00010384,2]
[352276131,1739025040794,-1043.74,0.00010384,2]
[352276133,1739025040803,-155.827945,0.00010384,2]
[352276135,1739025040812,-375.52329846,0.00010384,2]
[352276137,1739025040821,-740.47,0.00010384,2]
[352276138,1739025040831,-565.56,0.00010384,2]
[352276140,1739025040840,-501.64779158,0.00010385,2]
[352276143,1739025040850,-500.0,0.00010385,2]
[352276145,1739025040859,-500.0,0.00010385,2]
[352276147,1739025040868,-500.0,0.00010385,2]
[352276149,1739025040878,-500.0,0.00010385,2]
[352276151,1739025040887,-567.6159612,0.00010385,2]
[352276152,1739025040896,-500.0,0.00010385,2]
[352276155,1739025040906,-500.0,0.00010385,2]
[352276157,1739025040917,-500.0,0.00010385,2]
[352276159,1739025040926,-500.0,0.00010385,2]
[352276161,1739025040937,-500.0,0.00010385,2]
[352276163,1739025040946,-500.0,0.00010385,2]
[352276165,1739025040955,-500.0,0.00010385,2]
[352276167,1739025040964,-500.0,0.00010385,2]
[352276168,1739025040973,-500.0,0.00010385,2]
[352276171,1739025040991,-500.0,0.00010385,2]
[352276174,1739025041003,-500.0,0.00010385,2]
[352276176,1739025041012,-500.0,0.00010385,2]
[352276178,1739025041021,-591.8,0.00010385,2]
[352276180,1739025041030,-500.0,0.00010385,2]
[352276182,1739025041040,-500.0,0.00010385,2]
[352276184,1739025041049,-500.0,0.00010385,2]
[352276186,1739025041058,-500.0,0.00010385,2]
[352276188,1739025041068,-500.0,0.00010385,2]
[352276190,1739025041077,-500.0,0.00010385,2]
[352276192,1739025041086,-500.0,0.00010385,2]
[352276194,1739025041096,-500.0,0.00010385,2]
[352276196,1739025041105,-500.0,0.00010385,2]
[352276198,1739025041115,-500.17750686,0.00010385,2]
[352276200,1739025041124,-500.0,0.00010385,2]
[352276202,1739025041134,-500.0,0.00010385,2]
[352276204,1739025041143,-500.0,0.00010385,2]
[352276206,1739025041152,-500.0,0.00010385,2]
[352276208,1739025041162,-500.0,0.00010385,2]
[352276210,1739025041171,-500.0,0.00010385,2]
[352276212,1739025041183,-500.0,0.00010385,2]
[352276214,1739025041192,-500.0,0.00010385,2]
[352276216,1739025041202,-500.0,0.00010385,2]
[352276218,1739025041211,-500.0,0.00010385,2]
[352276220,1739025041221,-500.0,0.00010385,2]
[352276222,1739025041231,-533.81932162,0.00010385,2]
[352276224,1739025041240,-500.0,0.00010385,2]
[352276226,1739025041250,-500.0,0.00010385,2]
[352276228,1739025041259,-500.0,0.00010385,2]
[352276230,1739025041270,-500.0,0.00010385,2]
[352276232,1739025041291,-500.0,0.00010385,2]
[352276234,1739025041308,-500.0,0.00010385,2]
[352276236,1739025041317,-500.0,0.00010385,2]
[352276238,1739025041327,-500.0,0.00010385,2]
[352276240,1739025041336,-500.0,0.00010385,2]
[352276242,1739025041347,-500.0,0.00010385,2]
[352276244,1739025041356,-591.11813534,0.00010385,2]
[352276246,1739025041366,-296.77961463,0.00010385,2]
[352276248,1739025041375,-500.0,0.00010385,2]
[352276250,1739025041385,-500.0,0.00010385,2]
[352276252,1739025041394,-1455.89,0.00010385,2]
[352276254,1739025041405,-500.0,0.00010385,2]
[352276256,1739025041415,-500.0,0.00010385,2]
[352276258,1739025041425,-500.0,0.00010385,2]
[352276260,1739025041438,-500.0,0.00010385,2]
[352276262,1739025041450,-500.0,0.00010385,2]
[352276264,1739025041460,-500.0,0.00010385,2]
[352276266,1739025041470,-979.5,0.00010385,2]
[352276268,1739025041481,-500.0,0.00010385,2]
[352276269,1739025041491,-772.56,0.00010385,2]
[352276272,1739025041502,-500.0,0.00010385,2]
[352276274,1739025041513,-982.12,0.00010385,2]
[352276276,1739025041523,-619.06043984,0.00010385,2]
[352276278,1739025041534,-967.68,0.00010385,2]
[352276280,1739025041544,-777.57,0.00010385,2]
[352276282,1739025041554,-500.0,0.00010385,2]
[352276284,1739025041564,-1125.94,0.00010385,2]
[352276286,1739025041575,-1703.24,0.00010385,2]
[352276288,1739025041586,-525.07,0.00010385,2]
[352276290,1739025041597,-500.0,0.00010385,2]
[352276292,1739025041607,-500.0,0.00010385,2]
[352276294,1739025041618,-4892.73,0.00010385,2]
[352276296,1739025041628,-500.0,0.00010385,2]
[352276298,1739025041638,-500.0,0.00010385,2]
[352276300,1739025041647,-515.5,0.00010385,2]
[352276301,1739025041659,-500.0,0.00010385,2]
[352276303,1739025041668,-816.25,0.00010385,2]
[352276306,1739025041678,-500.0,0.00010385,2]
[352276307,1739025041688,-704.27,0.00010385,2]
[352276309,1739025041697,-500.0,0.00010385,2]
[352276311,1739025041707,-725.03,0.00010385,2]
[352276313,1739025041716,-500.0,0.00010385,2]
[352276315,1739025041726,-241.82276636,0.00010385,2]
[352276318,1739025041735,-500.0,0.00010385,2]
[352276319,1739025041745,-632.33,0.00010385,2]
[352276322,1739025041754,-1465.48,0.00010385,2]
[352276324,1739025041765,-2910.93,0.00010385,2]
[352276325,1739025041774,-500.0,0.00010385,2]
[352276328,1739025041784,-500.0,0.00010385,2]
[352276330,1739025041793,-515.89,0.00010385,2]
[352276332,1739025041803,-1138.83,0.00010385,2]
[352276334,1739025041813,-1267.49,0.00010385,2]
[352276336,1739025041822,-359.13575945,0.00010385,2]
[352276338,1739025041832,-500.0,0.00010385,2]
[352276340,1739025041841,-1957.7,0.00010385,2]
[352276342,1739025041852,-475.87555471,0.00010385,2]
[352276344,1739025041862,-1000.0,0.00010385,2]
[352276346,1739025041871,-750.51,0.00010385,2]
[352276348,1739025041881,-500.0,0.00010385,2]
[352276350,1739025041891,-605.62,0.00010385,2]
[352276352,1739025041901,-1299.02,0.00010385,2]
[352276354,1739025041910,-500.0,0.00010385,2]
[352276356,1739025041920,-1908.09,0.00010385,2]
[352276358,1739025041929,-500.0,0.00010385,2]
[352276360,1739025041939,-1549.75,0.00010385,2]
[352276362,1739025041948,-500.0,0.00010385,2]
[352276364,1739025041957,-500.0,0.00010385,2]
[352276366,1739025041967,-500.0,0.00010385,2]
[352276368,1739025041976,-500.0,0.00010385,2]
[352276370,1739025041984,-500.0,0.00010385,2]
[352276372,1739025041993,-5593.84,0.00010385,2]
[352276374,1739025042002,-500.0,0.00010385,2]
[352276376,1739025042011,-400.11,0.00010386,2]
[352276378,1739025042020,-500.0,0.00010386,2]
[352276380,1739025042029,-500.0,0.00010386,2]
[352276382,1739025042038,-500.0,0.00010386,2]
[352276383,1739025042048,-500.0,0.00010386,2]
[352276386,1739025042058,-500.0,0.00010386,2]
[352276388,1739025042069,-500.0,0.00010386,2]